Cogmind - Beta 13 *** ADVENTURER MODE // 2024.04.11 @ 17:21:16 Player: Teromax34 Result: Self-destructed Performance ------------- Evolutions (2) 1000 Regions Visited (5) 1000 Robots Destroyed (39) 195 Value Destroyed (952) 952 Prototype IDs (3) 60 Alien Tech Used (0) 0 Bonus (0) 0 TOTAL SCORE: 3207 Bonus ------- None Cogmind --------- Core Integrity 550/550 Matter 282/300 Energy 265/265 System Corruption 0% Temperature Cool (0) Movement Treading (160) Location -8/Materials Parts ------- > --- POWER (1) -------- Improved Ion Engine > --- PROPULSION (3) --- Light Treads Light Treads Light Treads > --- UTILITY (3) ------ Improved Heat Sink Medium Storage Unit > --- WEAPON (4) ------- Particle Gun Heavy Particle Gun Advanced Beam Cannon Light Cannon > --- INVENTORY (10) --- Ion Engine Ion Engine Improved Medium Laser Particle Cannon Heavy Assault Rifle Mining Laser Peak State ------------ > --- POWER ------------ Improved Ion Engine > --- PROPULSION ------- Light Treads Light Treads Light Treads > --- UTILITY ---------- Improved Heat Sink Medium Storage Unit > --- WEAPON ----------- Particle Gun Heavy Particle Gun Advanced Beam Cannon Light Cannon > --- INVENTORY -------- Ion Engine Ion Engine Improved Medium Laser Particle Cannon Heavy Assault Rifle Mining Laser [Rating: 20] Favorites ----------- Power Ion Engine Engine Ion Engine Power Core Light Nuclear Core Propulsion Light Treads Treads Light Treads Utility Improved Heat Sink Device Improved Heat Sink Storage Small Storage Unit Weapon Particle Gun Energy Gun Particle Gun Energy Cannon Advanced Beam Cannon Ballistic Gun Heavy Assault Rifle Ballistic Cannon Light Cannon Special Weapon Mining Laser Build | -11 -10 -10 -9 -9 -8 ------- Run | Yrd Mat Min Mat Min Mat Slots Evolved 4 | . . . 2 . 2 Power . | . . . . . . Propulsion 1 | . . . 1 . . Utility 1 | . . . . . 1 Weapon 2 | . . . 1 . 1 Parts Attached 28 | 6 4 7 10 . 1 Power 4 | 1 1 1 1 . . Engine 3 | 1 . 1 1 . . Core 1 | . 1 . . . . Reactor . | . . . . . . Propulsion 5 | 2 . 1 2 . . Treads 5 | 2 . 1 2 . . Leg . | . . . . . . Wheel . | . . . . . . Hover . | . . . . . . Flight . | . . . . . . Utility 3 | 1 1 . 1 . . Device 1 | . 1 . . . . Storage 2 | 1 . . 1 . . Processor . | . . . . . . Hackware . | . . . . . . Protection . | . . . . . . Artifact . | . . . . . . Weapon 16 | 2 2 5 6 . 1 Energy Gun 4 | 1 . 1 1 . 1 Energy Cannon 4 | . . 1 3 . . Ballistic Gun 2 | 1 . 1 . . . Ballistic Cannon 3 | . 1 1 1 . . Launcher . | . . . . . . Special Weapon 3 | . 1 1 1 . . Impact Weapon . | . . . . . . Slashing Weapon . | . . . . . . Piercing Weapon . | . . . . . . Special Melee Weapon . | . . . . . . Unidentified Prototypes 2 | . . . 2 . . Parts Lost 2 | . . 2 . . . Power . | . . . . . . Propulsion 1 | . . 1 . . . Utility . | . . . . . . Weapon 1 | . . 1 . . . Highest Loss Streak 1 | . . 1 . . . To Critical Strikes . | . . . . . . Average Slot Usage (%) 97 | . 97 99 96 100 83 Engine 8 | . 2 9 11 11 9 Core 4 | . 11 4 . . . Treads 28 | . 28 27 30 33 27 Device 12 | . 11 14 11 11 9 Storage 12 | . 14 14 11 11 9 Energy Gun 11 | . 14 10 11 11 11 Energy Cannon 3 | . . 1 9 11 9 Ballistic Gun 7 | . 7 11 2 . . Ballistic Cannon 6 | . 5 3 8 11 9 Naked Turns . | . . . . . . Heaviest Build 31 | 14 16 17 28 28 31 Greatest Support 60 | 40 40 40 60 60 60 Greatest Overweight (x) 1 | 1 . . . . . Average Overweight (x) . | . . . . . . Largest Inventory Capacity 10 | 8 8 8 10 10 10 Average Capacity 8 | 6 8 8 9 10 10 Most Carried 8 | 2 8 6 7 6 7 Average Carried 5 | 1 4 5 5 6 6 Final Capacity 10 | 8 8 8 10 10 10 Final Carried 6 | 2 6 5 6 6 6 Class Distribution -------------------- 67% | Mutant 28% | Scavenger-Gunner 4% | Gunner Dominant Class ---------------- Mutant | -10/Materials Mutant | -10/Mines Scavenger-Gunner | -9/Materials Scavenger-Gunner | -9/Mines Scavenger-Gunner | -8/Materials Resources | -11 -10 -10 -9 -9 -8 ----------- Run | Yrd Mat Min Mat Min Mat Matter Collected 794 | 239 114 258 151 32 . Remotely . | . . . . . . Salvage Created 1237 | . 201 418 437 91 90 Parts 83 | . 14 32 26 4 7 Haulers Intercepted 2 | . . . 2 . . Recyclers Shooed . | . . . . . . Parts Field Recycled . | . . . . . . Retrieved Matter . | . . . . . . Parts Self-Destructed . | . . . . . . Prevented . | . . . . . . Kills | -11 -10 -10 -9 -9 -8 ------- Run | Yrd Mat Min Mat Min Mat Combat Hostiles Destroyed 34 | . 5 19 7 2 1 Guns 18 | . 5 10 3 . . Cannons 16 | . . 9 4 2 1 Classes Destroyed 7 | . 3 1 3 . . Hauler 2 | . . . 2 . . Recycler 1 | . . . 1 . . Watcher 4 | . 1 . 2 . 1 Swarmer 14 | . 2 9 3 . . Grunt 16 | . 3 8 3 2 . Sentry 2 | . . . 1 . 1 Assembled 2 | . . 2 . . . Best Kill Streak 4 | . 3 4 3 2 1 Combat Bots Only 4 | . 2 4 3 2 1 Max Kills in Single Turn 2 | . 1 2 1 1 1 Gunslinging . | . . . . . . Exploded . | . . . . . . Melee . | . . . . . . Uniques/NPCs Destroyed . | . . . . . . Combat | -11 -10 -10 -9 -9 -8 -------- Run | Yrd Mat Min Mat Min Mat Hostile Shots Fired 114 | . 16 83 14 1 . Missed 34 | . 4 29 1 . . Damage Taken 661 | . 86 470 97 8 . Core 96 | . 21 59 16 . . Absorbed by Shields . | . . . . . . Ignored by Resistances 208 | . 27 148 30 3 . Core Remaining (%) 88 | 100 . 68 . 96 . Volleys Fired 88 | . 20 44 20 2 2 Largest 3 | . 2 2 3 3 3 Hottest 168 | . 100 108 168 168 168 Shots Fired 186 | . 39 82 54 6 5 Gun 99 | . 32 44 20 2 1 Cannon 78 | . 6 33 31 4 4 Launcher . | . . . . . . Special 9 | . 1 5 3 . . Kinetic 94 | . 19 54 17 2 2 Thermal 63 | . 1 18 37 4 3 Explosive . | . . . . . . Electromagnetic 29 | . 19 10 . . . Robot Hit Streak 18 | . 7 11 18 7 10 Robot Miss Streak 3 | . 3 3 3 . . Penetration Max . | . . . . . . Secondary Targets 1 | . 1 . . . . Max Gunslinging Chain 1 | . 1 . . . . Shots Hit Robots 112 | . 26 51 27 5 3 Core Hits 55 | . 10 26 14 3 2 Critical Kills . | . . . . . . Critical Parts Destroyed . | . . . . . . Critical Strikes 3 | . . . 2 1 . Burn 3 | . . . 2 1 . Melee Attacks . | . . . . . . Impact . | . . . . . . Slashing . | . . . . . . Piercing . | . . . . . . Sneak Attacks . | . . . . . . Combat Hostiles . | . . . . . . Follow-up Attacks . | . . . . . . Damage Inflicted 1857 | . 372 858 485 89 53 Guns 963 | . 337 380 205 28 13 Cannons 868 | . 35 452 280 61 40 Explosions 26 | . . 26 . . . Melee . | . . . . . . Ramming . | . . . . . . Kinetic 798 | . 143 538 98 19 . Thermal 725 | . . 215 387 70 53 Explosive . | . . . . . . Electromagnetic 334 | . 229 105 . . . Impact . | . . . . . . Slashing . | . . . . . . Piercing . | . . . . . . Highest Corruption 1 | . . . 1 1 . Average Corruption 1 | . . . 1 1 . Corruption Purged . | . . . . . . Corruption Blocked . | . . . . . . Effects 3 | . . . 1 2 . Message Errors 2 | . . . . 2 . Matter Fused 1 | . . . 1 . . Overload Shots . | . . . . . . Overflow Damage 1 | . . 1 . . . Projectiles 1 | . . 1 . . . Explosions . | . . . . . . Melee . | . . . . . . Knockbacks 7 | . 1 5 1 . . Impact . | . . . . . . Kinetic 7 | . 1 5 1 . . Secondary . | . . . . . . Self-Inflicted Damage . | . . . . . . Shots . | . . . . . . Rammed . | . . . . . . Targets Rammed . | . . . . . . Kicked . | . . . . . . Crushed . | . . . . . . Highest Temperature 293 | . . 129 293 66 51 Average Temperature 72 | . . 61 82 39 28 Received Heat Transfer 303 | . 36 210 51 6 . Siege Activations . | . . . . . . Robots Corrupted . | . . . . . . Combat Hostiles . | . . . . . . Parts Fried . | . . . . . . Impact Corruptions . | . . . . . . Robots Melted . | . . . . . . Combat Hostiles . | . . . . . . Parts Melted 3 | . . . 1 2 . Heat Transferred 1802 | . . 507 962 222 111 Parts Sabotaged . | . . . . . . Parts Stolen . | . . . . . . Parts Stripped . | . . . . . . Power Chain Reactions 1 | . . 1 . . . Alert | -11 -10 -10 -9 -9 -8 ------- Run | Yrd Mat Min Mat Min Mat Peak Influence 215 | . 161 215 168 105 105 Initial 55 | . . 8 22 55 34 Average 64 | . 55 50 94 92 64 Maximum Alert Level 1 | . . 1 . . . Low Security (%) 99 | 100 100 98 100 100 100 Level 1 . | . . 1 . . . Level 2 . | . . . . . . Level 3 . | . . . . . . Level 4 . | . . . . . . Level 5 . | . . . . . . High Security . | . . . . . . Max Security . | . . . . . . Squads Dispatched . | . . . . . . Investigation . | . . . . . . Extermination . | . . . . . . Reinforcement . | . . . . . . Assault . | . . . . . . Garrison . | . . . . . . Intercept . | . . . . . . Searches Triggered . | . . . . . . Construction Impeded . | . . . . . . Haulers Reinforced . | . . . . . . Active Scanning Responses . | . . . . . . Cargo Convoy Interrupts . | . . . . . . Stealth | -11 -10 -10 -9 -9 -8 --------- Run | Yrd Mat Min Mat Min Mat Distress Signals 4 | . 2 . 2 . . Communications Jammed . | . . . . . . Distress Signals . | . . . . . . Times Spotted 46 | . 11 19 12 2 2 Peak Tracking Total 6 | . 4 3 4 6 1 Tactical Retreats 1 | . 1 . . . . Traps | -11 -10 -10 -9 -9 -8 ------- Run | Yrd Mat Min Mat Min Mat Traps Triggered 1 | . . . 1 . . Indirectly . | . . . . . . Trap Hack Attempts . | . . . . . . Triggered . | . . . . . . Disarmed . | . . . . . . Reprogrammed . | . . . . . . Reused . | . . . . . . Traps Extracted . | . . . . . . Installed . | . . . . . . Triggered . | . . . . . . Machines | -11 -10 -10 -9 -9 -8 ---------- Run | Yrd Mat Min Mat Min Mat Machines Disabled 3 | . 1 . 2 . . Max in Single Turn 1 | . 1 . 1 . . Machines Repaired . | . . . . . . Machines Dismantled . | . . . . . . Machines Sabotaged . | . . . . . . Overloaded Fab Kills . | . . . . . . Hacking | -11 -10 -10 -9 -9 -8 --------- Run | Yrd Mat Min Mat Min Mat Machines Accessed 6 | . 2 . 3 . 1 Terminals 5 | . 2 . 3 . . Fabricators . | . . . . . . Repair Stations . | . . . . . . Recycling Units . | . . . . . . Scanalyzers 1 | . . . . . 1 Garrison Access . | . . . . . . Total Hacks 14 | . 6 . 6 . 2 Successful 5 | . 1 . 2 . 2 Failed 9 | . 5 . 4 . . Catastrophic 3 | . 2 . 1 . . Database Lockouts . | . . . . . . Manual 8 | . 5 . 3 . . Terminals 12 | . 6 . 6 . . Fabricators . | . . . . . . Repair Stations . | . . . . . . Recycling Units . | . . . . . . Scanalyzers 2 | . . . . . 2 Garrison Access . | . . . . . . Terminal Hacks 3 | . 1 . 2 . . Record 3 | . 1 . 2 . . Fabricator Hacks . | . . . . . . Repair Station Hacks . | . . . . . . Recycling Unit Hacks . | . . . . . . Scanalyzer 2 | . . . . . 2 Insert Component 1 | . . . . . 1 Analyze 1 | . . . . . 1 Garrison Access Hacks . | . . . . . . Unauthorized Hacks . | . . . . . . Terminals . | . . . . . . Fabricators . | . . . . . . Repair Stations . | . . . . . . Recycling Units . | . . . . . . Scanalyzers . | . . . . . . Garrison Access . | . . . . . . Data Cores Recovered . | . . . . . . Used . | . . . . . . Hacking Detections 5 | . 2 . 3 . . Full Trace Events . | . . . . . . Feedback Events . | . . . . . . Feedback Blocked . | . . . . . . Robot Schematics Acquired . | . . . . . . Robots Built . | . . . . . . Authchips . | . . . . . . Time . | . . . . . . Total Robot Build Rating . | . . . . . . Part Schematics Acquired 1 | . . . . . 1 Parts Built . | . . . . . . Authchips . | . . . . . . Time . | . . . . . . Total Part Build Rating . | . . . . . . Parts Repaired . | . . . . . . Time . | . . . . . . Parts Recycled . | . . . . . . Recycled Matter . | . . . . . . Retrieved Matter . | . . . . . . Retrieved Components . | . . . . . . Parts Scanalyzed 1 | . . . . . 1 Part Schematics Acquired 1 | . . . . . 1 Parts Damaged . | . . . . . . Bothacking | -11 -10 -10 -9 -9 -8 ------------ Run | Yrd Mat Min Mat Min Mat Used RIF Installer . | . . . . . . Robots Hacked . | . . . . . . Non-combat . | . . . . . . Combat . | . . . . . . Robot Hacks Applied . | . . . . . . Relay Couplers Released . | . . . . . . Fabnet Peak Effective % . | . . . . . . Robots Rewired . | . . . . . . Allies Hacked . | . . . . . . Hacks Repelled . | . . . . . . Allies | -11 -10 -10 -9 -9 -8 -------- Run | Yrd Mat Min Mat Min Mat Total Allies 2 | . . . . 2 . Largest Group 2 | . . . . 2 2 Highest-Rated Group 44 | . . . . 44 44 Highest-Rated Ally 31 | . . . . 31 31 Total Orders . | . . . . . . Ally Attacks 1 | . . . . . 1 Total Damage 22 | . . . . . 22 Kills . | . . . . . . Allies Corrupted . | . . . . . . Allies Melted . | . . . . . . Intel | -11 -10 -10 -9 -9 -8 ------- Run | Yrd Mat Min Mat Min Mat Robot Analysis Total . | . . . . . . Derelict Logs Recovered 4 | . . 3 . 1 . Drone Launches . | . . . . . . Drone Recoveries . | . . . . . . Exploration | -11 -10 -10 -9 -9 -8 ------------- Run | Yrd Mat Min Mat Min Mat Turns Passed 3712 | 89 733 1588 764 383 155 Spaces Moved 2021 | 55 402 873 380 226 85 Core 9 | 9 . . . . . Treads 2012 | 46 402 873 380 226 85 Legs . | . . . . . . Wheels . | . . . . . . Hover . | . . . . . . Flight . | . . . . . . Fastest Speed 50 | 50 160 160 160 160 160 Average Speed 159 | 143 160 160 160 160 160 Slowest Speed 160 | 160 160 160 160 160 160 Overloaded Moves . | . . . . . . Propulsion Burnouts . | . . . . . . Robots Hopped . | . . . . . . Cave-ins Triggered . | . . . . . . Exploration Rate (%) 41 | 4 63 92 35 48 6 Regions Visited 5 Branch Regions 2 Pre-discovered Areas 1 | . . 1 . . . Known Exits Taken 1 | . . . . 1 . Unknown Exits Taken 4 | 1 1 1 1 . . Scrap Searched 1 | . . 1 . . . Spaces Dug 4 | . 1 . 3 . . Terrain Destroyed 6 | . 1 2 3 . . Melee . | . . . . . . Projectile 4 | . 1 . 3 . . AOE 2 | . . 2 . . . Terrain Rammed . | . . . . . . Walls Destroyed . | . . . . . . Machines Disabled . | . . . . . . Actions | -11 -10 -10 -9 -9 -8 --------- Run | Yrd Mat Min Mat Min Mat Total 2313 | 62 450 971 488 243 99 Wait 154 | . 17 44 67 16 10 Move 2016 | 54 401 872 379 225 85 Hop . | . . . . . . Pick Up 18 | 2 6 2 7 . 1 Fast Attach 7 | 6 1 . . . . Attach 7 | . . 3 3 . 1 Detach 2 | . . 1 1 . . Swap 14 | . 3 4 7 . . Drop 7 | . 2 1 4 . . Fire 88 | . 20 44 20 2 2 Melee . | . . . . . . Ram . | . . . . . . Kick . | . . . . . . Crush . | . . . . . . Escape Stasis . | . . . . . . Rewire . | . . . . . . Trap . | . . . . . . Miscellaneous . | . . . . . . Route ------- -11/Scrapyard -10/Materials (discovered 3 exits: *Mat / [*Min x2]) -10/Mines (discovered 2 exits: *Mat x2) -9/Materials (discovered 3 exits: *Mat x2 / [*Min]) -9/Mines -8/Materials History --------- Turn | Location | Event 6 | -11/Scrapyard | Discovered new exit (range 15) 90 | -11/Scrapyard | Entered Materials 90 | -10/Materials | Discovered new exit (range 7) 318 | -10/Materials | Build established: Mutant 515 | -10/Materials | Discovered new exit (range 16) 706 | -10/Materials | Discovered new exit (range 7) 823 | -10/Materials | Entered Mines 878 | -10/Mines | Learned 2 Materials zone layouts 897 | -10/Mines | Discovered new exit (range 16) 943 | -10/Mines | Learned 2 Materials zone layouts 959 | -10/Mines | Excavation squad dispatched 959 | -10/Mines | A large section of the Mines collapsed 1472 | -10/Mines | Learned location of Zion (-7) 1886 | -10/Mines | Discovered new exit (range 9) 2411 | -10/Mines | Entered Materials 2411 | -9/Materials | Evolved 2 slots: Propulsion x1, Weapon x1 2412 | -9/Materials | Identified exit to Materials 2871 | -9/Materials | Discovered exit to Materials (range 14) 2976 | -9/Materials | Build established: Scavenger-Gunner 3102 | -9/Materials | Discovered new exit (range 8) 3175 | -9/Materials | Entered Mines 3176 | -9/Mines | Assembled infested the area 3179 | -9/Mines | Learned Materials interactive machine intel 3515 | -9/Mines | Discovered exit to Materials (range 7) 3558 | -9/Mines | Entered Materials 3558 | -8/Materials | Accompanied by 2 allies 3558 | -8/Materials | Evolved 2 slots: Utility x1, Weapon x1 3559 | -8/Materials | Loaded intel: 19 interactive machine locations 3563 | -8/Materials | Led the pair of lost Derelicts to an unsafe place 3713 | -8/Materials | Self-destructed Last Messages --------------- Loading Materials interactive machine intel (x19)... 1C-4PO(g): "This place looks worse than where we left..." 1C-4PO(g): "Following you was a bad idea, I think." Acquired Prototype Energy Gun. K-01 Serf collects debris. W-25 Informer destroyed. Y-45 Defender destroyed. Connecting with Scanalyzer... [Achievement: Safety First] >>Insert(Prototype Energy Gun) Scanning Hvy. Particle Gun... Ready to analyze. >>Scanalyze Scanning: Hvy. Particle Gun... Schematic downloaded. K-01 Serf collects debris. 1C-4PO(g): "Terrible idea. Terrible." Map ----- +----------------------------------------------------+ | ??????????????????????????????# #????? | | ??????????????????????????????+ #????? | | ??????????????????????????????# #????? | | ??????????????????????????????# #????? | | ??????????????????????????????# #????? | | ??????????????????????????????# #????? | | ??????????????????????????????# #????? | | ??????????????????????????????# #????? | | ??????????????????????????????# #????? | | ?????????????########?????##### ##???? | | ?????????????# "" ##????# #???? | | ?????????????# ""S[ #????# #???? | | ?????????????# ""!%#?????# #???? | | ?????????????# [#?????# ######### | | ?????????????# #?????# # # | | ?????????????# #?????# z # # | | ????????########+########## + # | | ?????# ^ # """ # | | ?????# ^ # """"" # | | ?????# # """"" # | | ?????# ################ #### """"" # | | ?????#??????????????????# #??# """ # | | ????????????????????????# #??# # | | ????????????????????????#gu#??# ? # | | ????????????????????????# #??####????# | | ????????????????????????#@ #??????????? | | ????????????????????????# #??????????? | | ????????????????????????# #??????????? | | ???????????????????????? ??????????? | | ???????????????????????+ #?????????? | | ???????????????????????# +?????????? | | ???????????????????????# == #?????????? | | ???????????????????????##!%##?????????? | | ????????????????????????# !#??????????? | | ????????????????????????# #??????????? | | ????????????????????????# #??????????? | | ????????????????????????# #??????????? | | ????????????????????????# #??????????? | | ????????????????????????? ???????????? | | ????????????????????????? ???????????? | | ????????????????????????? ???????????? | | ??????????????????????????????????????? | | ??????????????????????????????????????? | | ??????????????????????????????????????? | | ???????????????????????""?????????????? | | ???????????????????????T"?????????????? | | ???????????????????????""?????????????? | | ??????????????????????????????????????? | | ??????????????????????????????????????? | | ??????????????????????????????????????? | +----------------------------------------------------+ Best States ------------- Heat Dissipation 45 Energy Generation 14 Energy Capacity 265 Matter Stores 300 Matter Capacity 300 Sight Range 16 Terrain Scan Density 10 Resistance: KI 20 Resistance: TH 20 Resistance: EX 20 Resistance: EM 20 Resistance: I 20 Resistance: S 20 Resistance: P 20 Evasion (%) 40 Recoil Reduction 3 Offensive Hacking 10 Item Schematics ----------------- Hvy. Particle Gun | -8/Materials | Scanalyzed Robot Schematics ------------------ None Fabricated ------------ Nothing Alien Tech Used ----------------- None Achievements -------------- I Survived The Infestation Safety First Challenges ------------ None Game ------ Seed SubdwellerSigixWheel Manual? 0 Play Time 00:27:34 Cumulative 4.3 hours Start 2024.04.11 @ 16:39:50 End 2024.04.11 @ 17:21:16 Sessions 1 Manual Loads 0 Difficulty Adventurer Special Mode None Game No. 12 Rogue 0 Adventurer 12 Explorer 0 Win Type - Total 0 Types 0/0/0/0/0/0/0/0/0 Lore% 13 Gallery% 10 Achievement% 10 Wizard Run 0 Options --------- Layout 1 ASCII 0 Keyboard 0 Movement Arrows Keybinds 0 Fullscreen 1 Font 20/SmallcapsGlow Map View 50x35 Zoom Use 0% Tactical HUD 0 Map Filters NONE Filters NONE Steam 1 RUN: e2148fcf-37bb-406d-baa7-f7ca00d4eb84